fUST/lending_fUST_20240618
["ID","MTS","AMOUNT","RATE_DAILY","PERIOD"]
[329798999,1718681247855,-500.0,0.00016711,2]
[329799000,1718681247877,-500.0,0.00016712,2]
[329799001,1718681247898,-382.77856237,0.00016712,2]
[329799002,1718681252162,-500.0,0.00014999,2]
[329799004,1718681355156,-1597.14712311,0.00014999,2]
[329799005,1718681355181,-500.0,0.00016711,2]
[329799006,1718681355203,-500.0,0.00016711,2]
[329799007,1718681355225,-500.0,0.00016711,2]
[329799008,1718681355255,-500.0,0.00016711,2]
[329799009,1718681355278,-500.0,0.00016711,2]
[329799010,1718681355300,-500.0,0.00016711,2]
[329799011,1718681355323,-500.0,0.00016711,2]
[329799012,1718681355345,-500.0,0.00016712,2]
[329799013,1718681355367,-500.0,0.00016712,2]
[329799014,1718681355394,-480.23519912,0.00016712,2]
[329799015,1718681356108,-19.76480088,0.00016712,2]
[329799016,1718681356131,-500.0,0.00016712,2]
[329799017,1718681356155,-500.0,0.00016712,2]
[329799018,1718681356177,-500.0,0.00016712,2]
[329799019,1718681356199,-500.0,0.00016712,2]
[329799020,1718681356221,-500.0,0.00016712,2]
[329799021,1718681356242,-350.10267597,0.00016985,2]
[329799022,1718681356264,-521.72901424,0.00016985,2]
[329799023,1718681356287,-500.0,0.00016985,2]
[329799024,1718681356310,-500.0,0.00016985,2]
[329799025,1718681356332,-500.0,0.00016985,2]
[329799026,1718681356354,-500.0,0.00016985,2]
[329799027,1718681356377,-500.0,0.00016985,2]
[329799028,1718681356405,-500.0,0.00016985,2]
[329799029,1718681356430,-500.0,0.00016985,2]
[329799030,1718681356452,-500.0,0.00016985,2]
[329799031,1718681356476,-500.0,0.00016985,2]
[329799032,1718681356499,-500.0,0.00016985,2]
[329799033,1718681356522,-500.0,0.00016985,2]
[329799034,1718681356543,-500.0,0.00016985,2]
[329799035,1718681356565,-500.0,0.00016985,2]
[329799036,1718681356587,-500.0,0.00016985,2]
[329799037,1718681356607,-531.54723364,0.00016985,2]
[329799038,1718681356635,-500.0,0.00016985,2]
[329799039,1718681356656,-500.0,0.00016986,2]
[329799040,1718681356676,-500.0,0.00016986,2]
[329799041,1718681356706,-500.0,0.00016986,2]
[329799042,1718681356735,-500.0,0.00016986,2]
[329799043,1718681356763,-381.46828799,0.00016986,2]
[329799044,1718681356789,-500.0,0.00016986,2]
[329799045,1718681356815,-500.0,0.00016986,2]
[329799046,1718681356843,-500.0,0.00016986,2]
[329799047,1718681356875,-500.0,0.00017259,2]
[329799048,1718681356907,-500.0,0.00017259,2]
[329799049,1718681356934,-500.0,0.00017259,2]
[329799050,1718681356967,-500.0,0.00017259,2]
[329799051,1718681356997,-500.0,0.00017259,2]
[329799052,1718681357025,-500.0,0.00017259,2]
[329799053,1718681357052,-500.0,0.00017259,2]
[329799054,1718681357081,-500.0,0.00017259,2]
[329799055,1718681357107,-500.0,0.00017259,2]
[329799056,1718681357133,-519.780399,0.00017259,2]
[329799057,1718681357159,-634.69838461,0.00017259,2]
[329799058,1718681357190,-500.0,0.00017259,2]
[329799059,1718681357216,-500.0,0.0001726,2]
[329799060,1718681357243,-500.0,0.0001726,2]
[329799061,1718681357268,-500.0,0.0001726,2]
[329799062,1718681357294,-500.0,0.0001726,2]
[329799063,1718681357320,-500.0,0.0001726,2]
[329799064,1718681357345,-500.0,0.0001726,2]
[329799065,1718681357372,-500.0,0.0001726,2]
[329799066,1718681357403,-500.0,0.00017533,2]
[329799067,1718681357429,-228.24,0.00017533,2]
[329799068,1718681357452,-537.82,0.00017533,2]
[329799069,1718681357476,-500.0,0.00017533,2]
[329799070,1718681357501,-500.0,0.00017533,2]
[329799071,1718681357527,-500.0,0.00017533,2]
[329799072,1718681357554,-500.0,0.00017533,2]
[329799073,1718681357581,-500.0,0.00017533,2]
[329799074,1718681357604,-617.22143763,0.00017533,2]
[329799075,1718681357629,-500.0,0.00017533,2]
[329799076,1718681357654,-500.0,0.00017534,2]
[329799077,1718681357678,-500.0,0.00017534,2]
[329799078,1718681357701,-500.0,0.00017534,2]
[329799079,1718681357723,-349.65811885,0.00017534,2]
[329799080,1718681357746,-500.0,0.00017534,2]
[329799081,1718681357769,-500.0,0.00017534,2]
[329799082,1718681357794,-500.0,0.00017807,2]
[329799083,1718681357821,-500.0,0.00017807,2]
[329799084,1718681357847,-500.0,0.00017807,2]
[329799085,1718681357878,-500.0,0.00017807,2]
[329799086,1718681357906,-414.2,0.00017807,2]
[329799087,1718681357932,-500.0,0.00017807,2]
[329799088,1718681357962,-500.0,0.00017807,2]
[329799089,1718681357986,-500.0,0.00017808,2]
[329799090,1718681358009,-500.0,0.00017808,2]
[329799091,1718681358034,-500.0,0.00017808,2]
[329799092,1718681358058,-500.0,0.00017808,2]
[329799093,1718681358082,-505.56710208,0.0001808,2]
[329799094,1718681358107,-503.66202572,0.0001808,2]
[329799095,1718681358133,-500.0,0.0001808,2]
[329799096,1718681358156,-510.53622545,0.0001808,2]
[329799097,1718681358180,-589.34499721,0.0001808,2]
[329799098,1718681358204,-20000.0,0.00018081,2]
[329799099,1718681358230,-500.0,0.00018081,2]
[329799100,1718681358257,-500.0,0.00018081,2]
[329799101,1718681358419,-500.0,0.00018081,2]
[329799102,1718681358443,-500.0,0.00018081,2]
[329799103,1718681358467,-500.0,0.00018081,2]
[329799104,1718681358489,-500.0,0.00018081,2]
[329799105,1718681358511,-500.0,0.00018082,2]
[329799106,1718681358534,-423.11462035,0.00018082,2]
[329799107,1718681358556,-500.0,0.00018082,2]
[329799108,1718681358578,-500.0,0.00018082,2]
[329799109,1718681358601,-506.11988955,0.00018354,2]
[329799110,1718681358625,-500.0,0.00018355,2]
[329799111,1718681358652,-500.0,0.00018355,2]
[329799112,1718681358676,-500.0,0.00018355,2]
[329799113,1718681358699,-500.0,0.00018355,2]
[329799114,1718681358721,-500.0,0.00018355,2]
[329799115,1718681358744,-500.0,0.00018355,2]
[329799116,1718681358766,-500.0,0.00018356,2]
[329799117,1718681358789,-472.37122172,0.00018356,2]
[329799118,1718681358810,-183.59276837,0.00018356,2]
[329799119,1718681358834,-159.2,0.0001855,2]
[329799120,1718681358857,-500.0,0.00018629,2]
[329799121,1718681358887,-500.0,0.00018629,2]
[329799122,1718681358912,-500.0,0.00018629,2]
[329799123,1718681358939,-500.0,0.00018629,2]
[329799124,1718681358963,-500.0,0.00018629,2]
[329799125,1718681358987,-500.0,0.00018629,2]
[329799126,1718681359011,-500.0,0.0001863,2]
[329799127,1718681359032,-225.0,0.00018818,2]
[329799128,1718681359053,-225.0,0.00018818,2]
[329799129,1718681359074,-225.0,0.00018818,2]
[329799130,1718681359094,-225.0,0.00018818,2]
[329799131,1718681359115,-225.0,0.00018818,2]
[329799132,1718681359140,-225.0,0.00018818,2]
[329799133,1718681359161,-225.0,0.00018818,2]
[329799134,1718681359184,-225.0,0.00018818,2]
[329799135,1718681359205,-225.0,0.00018818,2]
[329799136,1718681359226,-225.0,0.00018818,2]
[329799137,1718681359246,-225.0,0.00018818,2]
[329799138,1718681359267,-225.0,0.00018818,2]
[329799139,1718681359295,-225.0,0.00018818,2]
[329799140,1718681359317,-225.0,0.00018818,2]
[329799141,1718681359339,-225.0,0.00018818,2]
[329799142,1718681359361,-225.0,0.00018818,2]
[329799143,1718681359384,-225.0,0.00018818,2]
[329799144,1718681359404,-225.0,0.00018818,2]
[329799145,1718681359425,-225.0,0.00018818,2]
[329799146,1718681359446,-225.0,0.00018818,2]
[329799147,1718681359468,-225.0,0.00018818,2]
[329799148,1718681359488,-225.0,0.00018818,2]
[329799149,1718681359509,-225.0,0.00018818,2]
[329799150,1718681359531,-225.0,0.00018818,2]
[329799151,1718681359553,-225.0,0.00018818,2]
[329799152,1718681359574,-225.0,0.00018818,2]
[329799153,1718681359595,-225.0,0.00018818,2]
[329799154,1718681359616,-225.0,0.00018818,2]
[329799155,1718681359640,-225.0,0.00018818,2]
[329799156,1718681359661,-225.0,0.00018818,2]
[329799157,1718681359682,-225.0,0.00018818,2]
[329799158,1718681359704,-225.0,0.00018818,2]
[329799159,1718681359725,-225.0,0.00018818,2]
[329799160,1718681359747,-225.0,0.00018818,2]
[329799161,1718681359768,-225.0,0.00018818,2]
[329799162,1718681359788,-225.0,0.00018818,2]
[329799163,1718681359811,-225.0,0.00018818,2]
[329799164,1718681359837,-225.0,0.00018818,2]
[329799165,1718681359860,-225.0,0.00018818,2]
[329799166,1718681359889,-225.0,0.00018818,2]
[329799167,1718681359913,-225.0,0.00018818,2]
[329799168,1718681359935,-225.0,0.00018818,2]
[329799169,1718681359957,-225.0,0.00018818,2]
[329799170,1718681359979,-225.0,0.00018818,2]
[329799171,1718681360001,-225.0,0.00018818,2]
[329799172,1718681360022,-225.0,0.00018818,2]
[329799173,1718681360047,-225.0,0.00018818,2]
[329799174,1718681360070,-225.0,0.00018818,2]
[329799175,1718681360092,-225.0,0.00018818,2]
[329799176,1718681360116,-225.0,0.00018818,2]
[329799177,1718681360140,-225.0,0.00018818,2]
[329799178,1718681360161,-225.0,0.00018818,2]
[329799179,1718681360183,-225.0,0.00018818,2]
[329799180,1718681360205,-225.0,0.00018822,2]
[329799181,1718681360230,-225.0,0.00018822,2]
[329799182,1718681360253,-225.0,0.00018822,2]
[329799183,1718681360276,-225.0,0.00018822,2]
[329799184,1718681360302,-225.0,0.00018822,2]
[329799185,1718681360326,-225.0,0.00018822,2]
[329799186,1718681360348,-225.0,0.00018822,2]
[329799187,1718681360370,-225.0,0.00018822,2]
[329799188,1718681360395,-225.0,0.00018822,2]
[329799189,1718681360417,-225.0,0.00018822,2]
[329799190,1718681360439,-225.0,0.00018822,2]
[329799191,1718681360461,-225.0,0.00018822,2]
[329799192,1718681360483,-225.0,0.00018822,2]
[329799193,1718681360506,-225.0,0.00018822,2]
[329799194,1718681360527,-225.0,0.00018822,2]
[329799195,1718681360549,-225.0,0.00018822,2]
[329799196,1718681360571,-225.0,0.00018822,2]
[329799197,1718681360592,-225.0,0.00018822,2]
[329799198,1718681360614,-225.0,0.00018822,2]
[329799199,1718681360637,-225.0,0.00018822,2]
[329799200,1718681360659,-225.0,0.00018822,2]
[329799201,1718681360682,-225.0,0.00018822,2]
[329799202,1718681360704,-225.0,0.00018822,2]
[329799203,1718681360726,-225.0,0.00018822,2]
[329799204,1718681360747,-225.0,0.00018822,2]
[329799205,1718681360768,-225.0,0.00018822,2]
[329799206,1718681360789,-225.0,0.00018822,2]
[329799207,1718681360810,-225.0,0.00018822,2]
[329799208,1718681360832,-225.0,0.00018822,2]
[329799209,1718681360854,-225.0,0.00018822,2]
[329799210,1718681360879,-151.261544,0.00018822,2]
[329799211,1718681360902,-1000.0,0.00018822,2]
[329799212,1718681360924,-1000.0,0.00018822,2]
[329799213,1718681360947,-1000.0,0.00018822,2]
[329799214,1718681360970,-1000.0,0.00018822,2]
[329799215,1718681360992,-1000.0,0.00018822,2]
[329799216,1718681361014,-1000.0,0.00018822,2]
[329799217,1718681361036,-1000.0,0.00018822,2]
[329799218,1718681361057,-1000.0,0.00018822,2]
[329799219,1718681361078,-1000.0,0.00018822,2]
[329799220,1718681361099,-1000.0,0.00018822,2]
[329799221,1718681361120,-1000.0,0.00018822,2]
[329799222,1718681361144,-1000.0,0.00018822,2]
[329799223,1718681361165,-1000.0,0.00018822,2]
[329799224,1718681361187,-1000.0,0.00018822,2]
[329799225,1718681361208,-1000.0,0.00018822,2]
[329799226,1718681361230,-1000.0,0.00018822,2]
[329799227,1718681361252,-1000.0,0.00018822,2]
[329799228,1718681361275,-201.746935,0.00018822,2]
[329799229,1718681361297,-201.746935,0.00018822,2]
[329799230,1718681361321,-201.746935,0.00018822,2]
[329799231,1718681361343,-201.746935,0.00018822,2]
[329799232,1718681361464,-294.14687685,0.000189,2]
[329799233,1718681361487,-500.0,0.00018903,2]
[329799234,1718681361511,-500.0,0.00018903,2]
[329799235,1718681361536,-500.0,0.00018903,2]
[329799236,1718681361560,-500.0,0.00018903,2]
[329799237,1718681361583,-500.0,0.00018903,2]
[329799238,1718681361609,-500.0,0.00018903,2]
[329799239,1718681361631,-231.05,0.00018904,2]
[329799240,1718681361656,-500.0,0.00019177,2]
[329799241,1718681361680,-500.0,0.00019177,2]
[329799242,1718681361705,-533.58,0.00019177,2]
[329799243,1718681361729,-500.0,0.00019177,2]
[329799244,1718681361751,-500.0,0.00019177,2]
[329799245,1718681361773,-500.0,0.00019178,2]
[329799246,1718681361795,-500.0,0.00019178,2]
[329799247,1718681361818,-500.0,0.00019178,2]
[329799248,1718681361840,-500.0,0.00019178,2]
[329799249,1718681361863,-500.0,0.00019178,2]
[329799250,1718681361891,-251.2819716,0.00019178,2]
[329799251,1718681361915,-174.701775,0.00019178,2]
[329799252,1718681361937,-159.2,0.00019288,2]
[329799253,1718681361963,-500.0,0.00019451,2]
[329799254,1718681361987,-500.0,0.00019451,2]
[329799255,1718681362011,-500.0,0.00019451,2]
[329799256,1718681362035,-500.0,0.00019451,2]
[329799257,1718681362061,-367.04,0.00019725,2]
[329799258,1718681362087,-500.0,0.00019725,2]
[329799259,1718681362111,-500.0,0.00019725,2]
[329799260,1718681362137,-500.0,0.00019725,2]
[329799261,1718681362245,-500.0,0.00019999,2]
[329799262,1718681363860,-500.0,0.00019999,2]
[329799263,1718681363900,-485.15,0.00019999,2]
[329799264,1718681363924,-5459.44368757,0.0002,2]
[329799265,1718681363949,-225.25685943,0.0002,2]
[329799266,1718681363973,-201.746935,0.0002,2]
[329799267,1718681363995,-201.746935,0.0002,2]
[329799268,1718681364018,-159.2,0.00020027,2]
[329799269,1718681364043,-500.0,0.00020273,2]
[329799270,1718681364068,-500.0,0.00020273,2]
[329799271,1718681364093,-500.0,0.00020547,2]
[329799272,1718681364117,-320.13,0.00020547,2]
[329799273,1718681364151,500.0,0.00019177,2]
[329799274,1718681364179,500.0,0.00019451,2]
[329799275,1718681364253,500.0,0.00019725,2]
[329799276,1718681364284,500.0,0.00019999,2]
[329799277,1718681364372,503.48780105,0.00016711,2]
[329799278,1718681364509,584.68,0.00020273,2]
[329799279,1718681373517,1222.19922045,0.00014999,2]
[329799280,1718681378386,5459.44368757,0.0002,2]
[329799281,1718681383215,225.25685943,0.0002,2]
[329799282,1718681394357,2099.1482916,0.0002,2]
[329799283,1718681399126,225.25685943,0.0002,2]
[329799284,1718681407759,151.0,0.000199,2]
[329799285,1718681415132,225.25685943,0.0002,2]
[329799286,1718681424390,548.22593488,0.00016711,2]
[329799344,1718681435554,-151.0,0.00020767,2]
[329799345,1718681435564,-500.0,0.00020821,2]
[329799346,1718681435574,-500.0,0.00021095,2]
[329799347,1718681435584,-500.0,0.00021369,2]
[329799348,1718681435594,-66.56867404,0.00021505,3]
[329799349,1718681435606,-84.43132596,0.00021505,3]
[329799350,1718681435616,-5271.96670823,0.00021565,2]
[329799351,1718681435626,-444.9124033,0.00021643,2]
[329799352,1718681437137,225.25685943,0.0002,2]
[329799412,1718681442460,-3769.152219,0.000216,7]
[329799414,1718681442470,-55.0875967,0.00021643,2]
[329799415,1718681442480,-1751.0,0.00021893,2]
[329799416,1718681442489,-200.0,0.00021917,2]
[329799418,1718681442498,-318.93152503,0.00021917,2]
[329799419,1718681442507,-172.66,0.00021917,2]
[329799420,1718681442515,-166.666666,0.00021918,2]
[329799421,1718681442524,-394.53105267,0.00022235,2]
[329799422,1718681442534,-620.14904851,0.00022236,2]
[329799423,1718681442542,-151.0,0.00022242,4]
[329799424,1718681442551,-151.0,0.00022242,4]
[329799425,1718681442560,-304.74173793,0.00022292,2]
[329799426,1718681442569,-300.0,0.00022383,2]
[329799427,1718681442579,-166.666666,0.00022431,2]
[329799428,1718681442588,-300.0,0.00022449,2]
[329799429,1718681442597,-300.0,0.00022455,2]
[329799430,1718681442606,-1310.1541355,0.00022474,2]
[329799431,1718681442615,-201.746935,0.00022475,2]
[329799432,1718681442624,-201.746935,0.00022475,2]
[329799433,1718681442633,-300.0,0.0002248,2]
[329799434,1718681442642,-500.0,0.00022496,2]
[329799435,1718681442652,-784.24779735,0.00022497,2]
[329799436,1718681442661,-163.49088985,0.00022497,2]
[329799437,1718681442671,-155.49641924,0.00022497,2]
[329799438,1718681442680,-155.19235036,0.00022497,2]
[329799439,1718681442689,-980.14586493,0.00022497,2]
[329799440,1718681442699,-555.59874415,0.00022497,2]
[329799441,1718681442708,-155.39045722,0.00022497,2]
[329799442,1718681442717,-263.57076218,0.00022497,2]
[329799443,1718681442727,-882.05327726,0.00022497,2]
[329799444,1718681442736,-1225.35525839,0.00022497,2]
[329799446,1718681442746,-928.62681591,0.00022497,2]
[329799448,1718681442757,-1989.79904864,0.00022497,2]
[329799450,1718681442767,-276.4438582,0.00022497,2]
[329799451,1718681442777,-265.5430625,0.00022497,2]
[329799452,1718681442787,-375.43626592,0.00022497,2]
[329799453,1718681442797,-384.55198647,0.00022497,7]
[329799454,1718681442807,-5847.11134952,0.00022498,2]
[329799455,1718681442818,-27543.47924642,0.00022499,3]
[329799456,1718681442831,-1482.1239843,0.00022499,3]
[329799457,1718681442841,-201.746935,0.00022499,2]
[329799458,1718681442851,-201.746935,0.00022499,2]
[329799459,1718681442861,-305.69799684,0.00022549,2]
[329799460,1718681442871,-1751.12496047,0.0002255,2]
[329799571,1718681444594,-250.0,0.00021335,2]
[329799574,1718681444604,-5003.94339188,0.0002255,2]
[329799577,1718681444614,-500.0,0.0002277,2]
[329799580,1718681444624,-5813.14142317,0.00022897,2]
[329799582,1718681444634,-1001.099362,0.000229,2]
[329799585,1718681444643,-166.666666,0.00022944,2]
[329799588,1718681444653,-151.0,0.0002298,4]
[329799591,1718681444662,-151.0,0.0002298,4]
[329799594,1718681444671,-615.30102124,0.00023,2]
[329799598,1718681444681,-600.0,0.00023,2]
[329799600,1718681444690,-500.0,0.00023044,2]
[329799602,1718681444700,-1000.0,0.00023112,2]
[329799604,1718681444709,-1000.0,0.00023125,2]
[329799606,1718681444719,-1000.0,0.00023127,2]
[329799608,1718681444728,-201.746935,0.0002314,2]
[329799610,1718681444738,-201.746935,0.0002314,2]
[329799612,1718681444747,-801.39443583,0.00023159,2]
[329799614,1718681444756,-597.77091298,0.0002321,2]
[329799616,1718681444766,-1000.0,0.00023218,2]
[329799618,1718681444776,-300.11729452,0.00023222,2]
[329799620,1718681444786,-1000.02332987,0.00023259,2]
[329799622,1718681444797,-1000.0,0.00023261,2]
[329799624,1718681444806,-577.54626011,0.0002327,2]
[329799626,1718681444815,-633.282853,0.00023288,2]
[329799628,1718681444825,-399.95208535,0.00023288,2]
[329799630,1718681444837,-233.33076765,0.00023288,2]
[329799632,1718681444847,-633.282853,0.00023288,2]
[329799634,1718681444857,-633.282853,0.00023288,2]
[329799636,1718681444866,-633.282853,0.00023288,2]
[329799638,1718681444876,-633.282853,0.00023288,2]
[329799640,1718681444885,-600.0,0.00023288,2]
[329799642,1718681444895,-201.746935,0.00023288,2]
[329799644,1718681444910,-201.746935,0.00023288,2]
[329799646,1718681444919,-1000.0,0.00023298,2]
[329799648,1718681444928,-633.282853,0.00023298,2]
[329799650,1718681444939,-633.282853,0.00023298,2]
[329799662,1718681445053,-217.71,0.000233,31]
[329799664,1718681445063,-217.71,0.000233,31]
[329799666,1718681445073,-217.71,0.000233,31]
[329799668,1718681445085,-217.71,0.000233,31]
[329799670,1718681445094,-217.71,0.000233,31]
[329799672,1718681445104,-217.71,0.000233,31]
[329799674,1718681445114,-170.83954352,0.000233,31]
[329799676,1718681445126,-46.87045648,0.000233,31]
[329799678,1718681445135,-217.71,0.000233,31]
[329799680,1718681445145,-217.71,0.000233,31]
[329799682,1718681445154,-217.71,0.000233,31]
[329799684,1718681445164,-217.71,0.000233,31]
[329799686,1718681445174,-217.71,0.000233,31]
[329799688,1718681445183,-217.71,0.000233,31]
[329799690,1718681445192,-217.71,0.000233,31]
[329799692,1718681445204,-217.71,0.000233,31]
[329799694,1718681445213,-217.71,0.000233,31]
[329799696,1718681445223,-217.71,0.000233,31]
[329799698,1718681445233,-217.71,0.000233,31]
[329799700,1718681445243,-217.71,0.000233,31]
[329799702,1718681445253,-217.71,0.000233,31]
[329799704,1718681445263,-312.90349386,0.00023303,2]
[329799708,1718681445296,1000.0,9.906e-05,2]
[329799712,1718681445324,1000.0,9.906e-05,2]
[329799762,1718681445799,-261.94705323,0.00022988,2]
[329799764,1718681445811,-415.19029489,0.00022988,2]
[329799934,1718681447467,179.32598656,0.0001671,2]
[329800286,1718681451001,-322.86265188,0.00022988,2]
[329800288,1718681451010,-1000.0,0.0002299,2]
[329800289,1718681451019,-1000.0,0.00022999,2]
[329800291,1718681451028,-622.41255569,0.00023071,2]
[329800303,1718681451133,225.25685943,0.0002,2]
[329800808,1718681457508,500.0,0.0001808,2]
[329800866,1718681458077,500.0,0.00018354,2]
[329800896,1718681458357,500.0,0.00018628,2]
[329800926,1718681458634,500.0,0.00018902,2]
[329800956,1718681458918,500.0,0.00019176,2]
[329800985,1718681459192,500.0,0.0001945,2]
[329801022,1718681459555,500.0,0.00019724,2]
[329801047,1718681459787,500.0,0.00019998,2]
[329801079,1718681460103,500.0,0.00020272,2]
[329801111,1718681460407,500.0,0.00020546,2]
[329801152,1718681460822,500.0,0.0001671,2]
[329801631,1718681466424,645.65,0.00016711,2]
[329801655,1718681469144,255.08942774,0.0002,2]
[329801656,1718681472623,286.17638205,9.999e-05,2]
[329801657,1718681481699,412.02215163,9.999e-05,2]
[329801659,1718681502732,204.55888887,9.999e-05,2]
[329801660,1718681504188,500.0,0.0001808,2]
[329801661,1718681511391,153.0,0.00018892,2]
[329801662,1718681512508,153.0,0.00018892,2]
[329801663,1718681514243,153.0,0.00018892,2]
[329801664,1718681515313,153.0,0.00018892,2]
[329801665,1718681516292,153.0,0.00018892,2]
[329801666,1718681517287,153.0,0.00018892,2]
[329801667,1718681518267,153.0,0.00018892,2]
[329801668,1718681519179,513.34702572,0.00015,2]
[329801669,1718681519203,159.91473812,0.00015,2]
[329801670,1718681519225,428.7131961,0.00015,2]
[329801672,1718681521699,154.82968734,9.999e-05,2]
[329801674,1718681539978,500.0,0.0001671,2]
[329801675,1718681621481,1344.59965403,9.999e-05,2]
[329801676,1718681739467,2700.0,0.00025999,60]
[329801679,1718682337178,-237.5484131,0.00016567,2]
[329801680,1718682337202,-155.9294222,0.0001671,2]
[329801681,1718682337226,-637.55,0.0001671,2]
[329801682,1718682337249,-512.08774668,0.00016711,2]
[329801683,1718682337273,-145.16613554,0.00016711,2]
[329801690,1718682434346,-354.83386446,0.00016711,2]
[329801691,1718682434368,-500.0,0.00016985,2]
[329801692,1718682434388,-637.615313,0.00017259,2]
[329801693,1718682434410,-500.0,0.00017806,2]
[329801694,1718682434431,-500.0,0.00017806,2]
[329801695,1718682434452,-502.95257823,0.00017806,2]
[329801696,1718682434472,-133.91824431,0.00017806,2]
[329801697,1718682442103,-200.0,0.00017806,2]
[329801698,1718682445119,-166.08175569,0.00017806,2]
[329801699,1718682445141,-500.0,0.00017806,2]
[329801700,1718682445162,-333.91824431,0.00017806,2]
[329801706,1718682559147,-166.08175569,0.00017806,2]
[329801707,1718682559166,-500.0,0.0001808,2]
[329801708,1718682559185,-500.0,0.0001808,2]
[329801709,1718682561136,-308.0,0.00018352,2]
[329801710,1718682561156,-500.0,0.00018353,2]
[329801711,1718682561178,-423.96049662,0.00018353,2]
[329801712,1718682561200,-500.0,0.00018353,2]
[329801713,1718682561221,-500.0,0.00018353,2]
[329801714,1718682561240,-500.0,0.00018354,2]
[329801715,1718682561262,-500.0,0.00018354,2]
[329801716,1718682561285,-500.0,0.00018354,2]
[329801717,1718682561307,-500.0,0.00018354,2]
[329801718,1718682561327,-500.0,0.00018354,2]
[329801719,1718682561351,-500.0,0.00018354,2]
[329801720,1718682561372,-500.0,0.00018374,2]
[329801721,1718682561396,-500.0,0.00018374,2]
[329801722,1718682561418,-500.0,0.00018374,2]
[329801723,1718682561438,-500.0,0.00018374,2]
[329801724,1718682561459,-226.91394655,0.00018374,2]
[329801725,1718682561482,-500.0,0.00018374,2]
[329801726,1718682561502,-500.0,0.00018627,2]
[329801727,1718682561524,-500.0,0.00018627,2]
[329801728,1718682561546,-500.0,0.00018627,2]
[329801729,1718682561566,-454.10900524,0.00018628,2]
[329801730,1718682561588,-500.0,0.00018628,2]
[329801731,1718682561608,-500.0,0.00018628,2]
[329801732,1718682561631,-500.0,0.00018628,2]
[329801733,1718682561650,-500.0,0.00018628,2]
[329801734,1718682561672,-500.0,0.00018628,2]
[329801735,1718682561692,-500.0,0.00018648,2]
[329801736,1718682561713,-500.0,0.00018648,2]
[329801737,1718682561733,-500.0,0.00018648,2]
[329801738,1718682561755,-500.0,0.00018648,2]
[329801739,1718682561776,-500.0,0.00018648,2]
[329801740,1718682561796,-1500.39437836,0.000188,2]
[329801741,1718682561816,-153.0,0.00018892,2]
[329801742,1718682561835,-153.0,0.00018892,2]
[329801743,1718682561853,-153.0,0.00018892,2]
[329801744,1718682561872,-153.0,0.00018892,2]
[329801745,1718682561895,-153.0,0.00018892,2]
[329801746,1718682561916,-153.0,0.00018892,2]
[329801747,1718682561940,-153.0,0.00018892,2]
[329801748,1718682561962,-153.0,0.00018892,2]
[329801749,1718682561983,-153.0,0.00018892,2]
[329801750,1718682562007,-153.0,0.00018892,2]